bitfinex/quotes_SOLUSD_20220113
["timestamp","ask_amount","ask_price","bid_price","bid_amount"]
[1642068675875,2.874,152.44,152.37,23.9807]
[1642068676376,0.25,152.44,152.37,23.9807]
[1642068677076,9.843,152.44,152.37,33.8235]
[1642068677275,9.843,152.44,152.38,2.624]
[1642068677476,9.843,152.44,152.39,29.92728609]
[1642068677676,9.843,152.44,152.4,2.624]
[1642068677876,9.843,152.44,152.39,29.92728609]
[1642068678078,1.87360949,152.47,152.4,2.624]
[1642068678478,0.25,152.47,152.37,75.4003]
[1642068678679,0.25,152.47,152.38,24.4272]
[1642068678880,2.624,152.47,152.38,24.4272]
[1642068679081,2.874,152.47,152.38,24.4272]
[1642068679283,12.7152,152.47,152.39,9.8415]
[1642068679880,12.7152,152.47,152.38,24.4272]
[1642068680115,10.0912,152.47,152.38,24.4272]
[1642068681013,10.0912,152.47,152.38,34.2694]
[1642068683316,2.624,152.46,152.38,34.2694]
[1642068683516,0.25,152.46,152.38,34.2694]
[1642068684116,2.624,152.47,152.38,34.2694]
[1642068684317,1.87360949,152.49,152.39,2.624]
[1642068684517,2.624,152.48,152.39,2.624]
[1642068685119,4.49760949,152.49,152.39,2.624]
[1642068685522,4.74760949,152.49,152.39,2.624]
[1642068685918,4.74760949,152.49,152.37,77.26047745]
[1642068686120,9.841,152.47,152.39,9.8416]
[1642068686417,9.841,152.47,152.4,24.7454]
[1642068686618,10.091,152.47,152.4,24.7454]
[1642068688921,9.841,152.47,152.4,24.7454]
[1642068690526,10.091,152.47,152.4,24.7454]
[1642068695327,10.091,152.47,152.37,77.51047745]
[1642068696327,10.091,152.47,152.37,75.6493]
[1642068696328,11.96460949,152.47,152.37,75.6493]
[1642068696528,14.58860949,152.47,152.37,75.6493]
[1642068696828,11.96460949,152.47,152.38,24.3733]
[1642068697028,2.624,152.46,152.38,24.3733]
[1642068697527,2.874,152.46,152.38,24.3733]
[1642068698329,9.8428,152.44,152.38,24.3733]
[1642068698533,10.0928,152.44,152.38,24.3733]
[1642068699630,10.0928,152.44,152.38,26.9973]
[1642068700032,0.25,152.44,152.38,26.9973]
[1642068700533,4.74760949,152.47,152.38,26.9973]
[1642068700733,2.12360949,152.47,152.38,26.9973]
[1642068700931,2.12360949,152.47,152.39,31.63327694]
[1642068701332,11.96440949,152.47,152.39,31.63327694]
[1642068701731,11.96440949,152.47,152.4,24.0487]
[1642068701933,10.0908,152.47,152.4,26.6727]
[1642068702234,1.87360949,152.48,152.4,26.6727]
[1642068703137,11.71370949,152.48,152.4,26.6727]
[1642068703336,11.71370949,152.48,152.41,9.8403]
[1642068703539,11.96370949,152.48,152.41,9.8403]
[1642068703939,10.0901,152.48,152.41,9.8403]
[1642068704741,9.8401,152.48,152.41,9.8403]
[1642068705039,9.8401,152.48,152.41,10.0903]
[1642068705244,4.49760949,152.49,152.41,10.0903]
[1642068705442,1.87360949,152.49,152.42,2.623]
[1642068705643,1.87360949,152.5,152.42,25.5821]
[1642068706045,1.87360949,152.5,152.42,31.5821]
[1642068706472,0.25,152.5,152.42,25.8321]
[1642068706671,1.87360949,152.51,152.42,25.8321]
[1642068707273,11.71180949,152.51,152.43,9.8386]
[1642068707473,11.71180949,152.51,152.44,2.623]
[1642068707673,11.71180949,152.51,152.44,26.3963]
[1642068708175,9.8382,152.51,152.44,26.3963]
[1642068708374,2.623,152.5,152.44,23.7733]
[1642068708573,2.873,152.5,152.44,23.7733]
[1642068709374,2.873,152.5,152.44,33.6115]
[1642068710174,2.873,152.5,152.44,23.7733]
[1642068711176,12.7119,152.5,152.44,23.7733]
[1642068714181,14.58550949,152.5,152.44,23.7733]
[1642068716488,14.58550949,152.5,152.41,81.8915]
[1642068716888,16.23463131,152.5,152.41,72.0511]
[1642068718090,1.87360949,152.49,152.41,72.0511]
[1642068718288,2.623,152.48,152.41,72.0511]
[1642068718488,2.873,152.48,152.41,72.0511]
[1642068719690,0.25,152.48,152.41,72.0511]
[1642068719890,0.25,152.48,152.39,25.8064]
[1642068720091,2.12360949,152.49,152.39,25.8064]
[1642068720792,1.87360949,152.48,152.39,25.8064]
[1642068721093,2.12360949,152.48,152.39,25.8064]
[1642068721291,9.8407,152.47,152.39,35.6481]
[1642068721491,10.0907,152.47,152.39,35.6481]
[1642068723294,9.8407,152.47,152.39,35.6481]
[1642068723595,9.8407,152.47,152.39,41.8981]
[1642068724197,1.87360949,152.5,152.39,41.8981]
[1642068724600,2.12360949,152.5,152.39,41.8981]
[1642068725228,9.8394,152.49,152.39,41.8981]
[1642068725627,9.8394,152.49,152.4,9.5]
[1642068725825,9.8394,152.49,152.4,17.204]
[1642068726026,9.8394,152.49,152.41,1.05418566]
[1642068726227,9.8394,152.49,152.42,36.97021907]
[1642068726426,1.87360949,152.52,152.42,36.97021907]
[1642068726626,1.87360949,152.52,152.43,23.4651]
[1642068727126,1.87360949,152.52,152.43,29.7151]
[1642068727326,1.87360949,152.52,152.43,39.4751]
[1642068727526,1.87360949,152.52,152.44,9.8365]
[1642068727929,0.25,152.52,152.45,22.6281]
[1642068728132,0.25,152.52,152.45,25.2511]
[1642068728331,2.12360949,152.54,152.45,31.2511]
[1642068728531,2.12360949,152.54,152.45,31.5111]
[1642068728733,2.12360949,152.54,152.45,31.2511]
[1642068729334,2.12360949,152.54,152.45,31.5111]
[1642068729633,2.12360949,152.54,152.48,9.8352]
[1642068730040,0.25,152.54,152.48,9.8352]
[1642068730433,4.74560949,152.55,152.48,9.8352]
[1642068731437,2.12360949,152.55,152.48,9.8352]
[1642068732037,0.25,152.55,152.48,9.8352]
[1642068732536,11.95900949,152.56,152.48,9.8352]
[1642068732736,11.95900949,152.56,152.48,103.58296219]
[1642068733337,2.12360949,152.56,152.48,103.58296219]
[1642068733939,2.12360949,152.56,152.49,24.7029]
[1642068734345,2.12360949,152.56,152.5,65.88]
[1642068734738,2.12360949,152.56,152.49,24.7029]
[1642068734939,0.25,152.56,152.49,30.7029]
[1642068735441,1.87360949,152.58,152.52,9.833]
[1642068736043,1.87360949,152.58,152.52,15.833]
[1642068736347,1.87360949,152.58,152.53,65.88]
[1642068736642,1.87360949,152.58,152.54,23.5840641]
[1642068736846,1.87360949,152.58,152.55,65.88]
[1642068737045,4.49560949,152.6,152.56,6.06439993]
[1642068738245,2.622,152.6,152.56,6.06439993]
[1642068738846,2.872,152.6,152.56,6.06439993]
[1642068739647,0.25,152.6,152.56,6.06439993]
[1642068740052,0.16510868,152.61,152.56,6.06439993]
[1642068740248,0.16510868,152.61,152.54,89.4640641]
[1642068741050,0.16510868,152.61,152.54,23.5840641]
[1642068741247,0.16510868,152.61,152.55,23.4433]
[1642068742550,0.16510868,152.61,152.55,32.9433]
[1642068742950,0.16510868,152.61,152.56,65.88]
[1642068743151,0.16510868,152.61,152.57,9.5]
[1642068743354,0.16510868,152.61,152.58,65.88]
[1642068743553,0.16510868,152.61,152.59,6.06439993]
[1642068747083,0.16510868,152.61,152.6,3.0]
[1642068769806,9.99570868,152.61,152.6,3.0]
[1642068770003,10.24570868,152.61,152.6,3.0]
[1642068771105,12.11931817,152.61,152.6,3.0]
[1642068771308,14.74031817,152.61,152.52,12.121]
[1642068771505,14.74031817,152.61,152.5,12.4525]
[1642068771707,14.74031817,152.61,152.51,22.5164]
[1642068772406,1.87360949,152.6,152.51,22.5164]
[1642068772606,2.622,152.59,152.51,22.5164]
[1642068773011,2.872,152.59,152.51,22.5164]
[1642068773207,1.87360949,152.57,152.51,22.5164]
[1642068773710,9.8352,152.56,152.51,22.5164]
[1642068774107,10.0852,152.56,152.51,22.5164]
[1642068774510,10.0852,152.56,152.49,22.8855]
[1642068777633,9.8352,152.56,152.49,88.7655]
[1642068777834,9.8352,152.56,152.5,2.622]
[1642068778037,9.8352,152.56,152.5,2.872]
[1642068778334,4.49560949,152.6,152.5,2.872]
[1642068778535,0.25,152.58,152.51,22.8867]
[1642068779234,9.8326,152.58,152.51,22.8867]
[1642068781038,10.0826,152.58,152.51,22.8867]
[1642068784441,9.8326,152.58,152.53,30.25446002]
[1642068784642,1.87360949,152.6,152.54,2.622]
[1642068785542,0.16510868,152.61,152.54,16.735]
[1642068785743,0.16510868,152.61,152.56,65.88]
[1642068785943,0.16510868,152.61,152.57,2.621]
[1642068786342,0.16510868,152.61,152.57,8.621]
[1642068787044,0.16510868,152.61,152.57,2.621]
[1642068787245,0.16510868,152.61,152.57,23.6298]
[1642068787544,0.16510868,152.61,152.57,29.6298]
[1642068788045,0.16510868,152.61,152.57,29.8798]
[1642068788245,0.16510868,152.61,152.58,2.621]
[1642068788445,0.16510868,152.61,152.59,71.94439993]
[1642068788644,0.16510868,152.61,152.59,101.13689331]
[1642068793654,0.00510868,152.61,152.6,86.621]
[1642068793956,0.00510868,152.61,152.6,102.631]
[1642068794157,0.00510868,152.61,152.6,18.631]
[1642068794655,0.00510868,152.61,152.6,18.381]
[1642068794855,0.00510868,152.61,152.6,84.511]
[1642068795655,0.00510868,152.61,152.6,94.3349]
[1642068796054,0.00510868,152.61,152.6,88.0749]
[1642068796254,0.00510868,152.61,152.6,21.9449]
[1642068796455,0.00510868,152.61,152.6,12.121]
[1642068796654,0.00510868,152.61,152.6,78.001]
[1642068797854,0.00510868,152.61,152.6,78.261]
[1642068798057,0.00510868,152.61,152.6,78.001]
[1642068798956,0.00510868,152.61,152.6,12.121]
[1642068800357,0.00510868,152.61,152.57,33.1298]
[1642068800658,0.00510868,152.61,152.57,33.3798]
[1642068800860,0.00510868,152.61,152.57,63.94367565]
[1642068801056,0.00510868,152.61,152.57,64.20367565]
[1642068801258,0.00510868,152.61,152.57,70.20367565]
[1642068801558,0.00510868,152.61,152.58,65.88]
[1642068801758,0.00510868,152.61,152.59,9.5]
[1642068801960,0.00510868,152.61,152.59,12.53219996]
[1642068803059,0.00510868,152.61,152.6,65.88]
[1642068803260,0.00510868,152.61,152.6,9.5]
[1642068803884,0.00510868,152.61,152.6,12.53219997]
[1642068804285,0.00510868,152.61,152.6,9.5]
[1642068804888,0.00510868,152.61,152.6,9.76]
[1642068805088,0.00510868,152.61,152.6,78.67219997]
[1642068807090,0.00510868,152.61,152.6,78.41219997]
[1642068807288,0.00510868,152.61,152.6,12.53219997]
[1642068808190,0.00510868,152.61,152.6,78.41219997]
[1642068810697,0.00510868,152.61,152.6,81.03319997]
[1642068811595,0.00510868,152.61,152.6,81.28319997]
[1642068812601,0.00510868,152.61,152.6,81.54319997]
[1642068813402,0.00510868,152.61,152.6,81.28319997]
[1642068813600,0.00510868,152.61,152.6,81.03319997]
[1642068814003,0.00510868,152.61,152.6,81.28319997]
[1642068815003,0.00510868,152.61,152.6,81.03319997]
[1642068815204,0.00510868,152.61,152.6,78.41219997]
[1642068817707,0.00510868,152.61,152.6,84.92219997]
[1642068817905,0.00510868,152.61,152.6,84.67219997]
[1642068818407,0.00510868,152.61,152.6,78.67219997]
[1642068818608,0.00510868,152.61,152.6,87.29319997]
[1642068819407,0.00510868,152.61,152.6,97.11859997]
[1642068819607,0.00510868,152.61,152.6,94.23759997]
[1642068819812,0.00510868,152.61,152.6,88.23759997]
[1642068820609,0.00510868,152.61,152.6,88.49759997]
[1642068823539,0.00510868,152.61,152.6,78.67219997]
[1642068824041,0.00510868,152.61,152.6,78.41219997]
[1642068824841,0.00510868,152.61,152.6,88.23779997]
[1642068825540,0.00510868,152.61,152.6,88.49779997]
[1642068825744,0.00510868,152.61,152.6,88.23779997]
[1642068825940,0.00510868,152.61,152.6,88.49779997]
[1642068826843,0.00510868,152.61,152.6,78.67219997]
[1642068827944,0.00510868,152.61,152.6,78.92219997]
[1642068828145,0.00510868,152.61,152.6,88.74779997]
[1642068828445,0.00510868,152.61,152.6,88.48779997]
[1642068830153,0.00510868,152.61,152.6,91.10879997]
[1642068832757,0.00510868,152.61,152.6,91.36879997]
[1642068834555,0.00510868,152.61,152.6,91.10879997]
[1642068835056,0.00510868,152.61,152.6,81.28319997]
[1642068835458,0.00510868,152.61,152.6,78.66219997]
[1642068835856,0.00510868,152.61,152.6,75.63]
[1642068836055,0.00510868,152.61,152.6,75.89]
[1642068836256,0.00510868,152.61,152.6,78.92219997]
[1642068836457,0.00510868,152.61,152.6,84.92219997]
[1642068836660,0.00510868,152.61,152.6,94.74809997]
[1642068836856,0.00510868,152.61,152.6,95.79753904]
[1642068837056,0.00510868,152.61,152.6,94.74809997]
[1642068837762,0.00510868,152.61,152.6,95.79753904]
[1642068838561,383.09663183,152.77,152.7,57.0]
[1642068838764,383.09663183,152.77,152.73,3.419]
[1642068838962,51.28797516,152.76,152.74,9.5]
[1642068839460,0.03791311,152.75,152.74,9.5]
[1642068839660,0.03791311,152.75,152.74,85.1973]
[1642068839858,0.03791311,152.75,152.74,19.3173]
[1642068840062,0.03791311,152.75,152.74,22.34949996]
[1642068841059,0.03791311,152.75,152.74,12.53219996]
[1642068841661,0.03791311,152.75,152.74,35.82639996]
[1642068841959,0.03791311,152.75,152.74,45.64369996]
[1642068842160,0.03791311,152.75,152.74,48.67589993]
[1642068842365,12.6845,152.85,152.74,49.725339]
[1642068842565,12.4345,152.85,152.75,68.497]
[1642068842766,2.618,152.85,152.76,9.5]
[1642068843163,2.618,152.85,152.77,65.88]
[1642068843363,2.618,152.85,152.78,9.5]
[1642068843763,2.618,152.85,152.74,33.1315]
[1642068843764,84.0,152.83,152.73,0.009]
[1642068843964,84.0,152.83,152.59,9.8759]
[1642068843965,0.31594491,152.78,152.59,9.8759]
[1642068844162,25.05744761,152.76,152.59,9.8759]
[1642068844362,25.05744761,152.76,152.6,9.5]
[1642068844563,2.619,152.75,152.62,65.88]
[1642068845063,2.869,152.75,152.62,65.88]
[1642068845266,2.869,152.75,152.63,2.619]
[1642068845563,2.869,152.75,152.64,65.88]
[1642068845964,9.8237,152.73,152.64,65.88]
[1642068846165,2.619,152.72,152.64,68.499]
[1642068846566,2.869,152.72,152.64,77.999]
[1642068846767,2.619,152.72,152.64,77.999]
[1642068846966,2.869,152.72,152.64,78.249]
[1642068847466,2.869,152.72,152.64,9.5]
[1642068847968,0.25,152.72,152.64,75.63]
[1642068848366,2.869,152.73,152.64,75.63]
[1642068849209,0.25,152.73,152.65,2.619]
[1642068849810,2.869,152.75,152.65,2.619]
[1642068850910,681.67658255,152.84,152.66,9.5]
[1642068850911,2.619,152.78,152.66,9.5]
[1642068851112,2.619,152.79,152.67,68.499]
[1642068851313,2.619,152.79,152.67,77.999]
[1642068851511,9.8219,152.76,152.67,78.509]
[1642068852112,26.30686905,152.79,152.67,78.509]
[1642068853339,26.55686905,152.79,152.69,65.88]
[1642068853539,26.55686905,152.79,152.69,66.13]
[1642068853738,2.869,152.79,152.69,66.13]
[1642068854140,2.869,152.79,152.69,65.88]
[1642068854340,2.869,152.79,152.69,68.498]
[1642068854541,2.869,152.79,152.69,2.618]
[1642068854741,25.57830068,152.79,152.69,2.618]
[1642068855241,9.5,152.78,152.69,2.618]
[1642068855441,2.618,152.77,152.68,25.7574]
[1642068855645,12.118,152.77,152.68,91.8874]
[1642068855841,9.5,152.77,152.68,91.8874]
[1642068856745,9.5,152.77,152.68,89.2694]
[1642068856942,9.75,152.77,152.69,2.619]
[1642068857343,19.5705,152.77,152.69,2.619]
[1642068858745,19.3205,152.77,152.69,2.619]
[1642068858944,19.3205,152.77,152.69,2.869]
[1642068859644,19.3205,152.77,152.69,2.619]
[1642068859845,19.3205,152.77,152.69,2.869]
[1642068860046,19.3205,152.77,152.69,2.619]
[1642068860247,19.3205,152.77,152.69,2.869]
[1642068860445,19.5705,152.77,152.69,2.869]
[1642068860651,19.3205,152.77,152.69,2.869]
[1642068861249,19.3205,152.77,152.69,3.129]
[1642068861447,9.5,152.77,152.69,3.129]
[1642068863849,9.5,152.77,152.69,12.9487]
[1642068864348,9.5,152.77,152.7,65.88]
[1642068864548,9.5,152.77,152.71,2.618]
[1642068864953,9.5,152.77,152.71,2.868]
[1642068867256,9.5,152.77,152.71,2.618]
[1642068867453,9.5,152.77,152.71,2.868]
[1642068869758,9.5,152.77,152.72,65.88]
[1642068869958,9.5,152.77,152.72,66.13]
[1642068870159,9.8192,152.79,152.72,66.13]
[1642068870459,9.8192,152.79,152.73,2.618]
[1642068870659,10.0692,152.79,152.73,2.618]
[1642068870861,0.25,152.79,152.73,2.618]
[1642068871759,0.25,152.79,152.73,26.3401]
[1642068871959,22.1873,152.81,152.74,65.88]
[1642068874567,19.5683,152.81,152.74,65.88]
[1642068875667,22.1863,152.81,152.74,65.88]
[1642068877768,19.5683,152.81,152.74,65.88]
[1642068879903,23.81341821,152.79,152.74,65.88]
[1642068880103,24.06341821,152.79,152.74,65.88]
[1642068880502,23.81341821,152.79,152.74,65.88]
[1642068881707,24.06341821,152.79,152.74,65.88]
[1642068882906,23.81341821,152.79,152.74,65.88]
[1642068885009,9.8172,152.82,152.74,75.6973]
[1642068885209,9.8172,152.82,152.74,75.9473]
[1642068885410,9.8172,152.82,152.74,75.6973]
[1642068885609,9.5,152.83,152.74,75.6973]
[1642068885809,12.118,152.83,152.75,2.618]
[1642068886008,25.52337813,152.82,152.75,2.618]
[1642068886209,25.52337813,152.82,152.74,75.6973]
[1642068886608,25.77337813,152.82,152.74,75.6973]
[1642068887008,35.34057813,152.82,152.74,75.6973]
[1642068887410,35.34057813,152.82,152.75,2.618]
[1642068887609,35.34057813,152.82,152.75,91.2304]
[1642068888813,35.59057813,152.82,152.75,88.6124]
[1642068889416,25.77337813,152.82,152.75,88.6124]
[1642068890143,25.77337813,152.82,152.75,88.8724]
[1642068890315,25.52337813,152.82,152.75,88.8724]
[1642068890512,25.52337813,152.82,152.75,98.9395]
[1642068890913,25.52337813,152.82,152.75,98.6895]
[1642068891115,25.52337813,152.82,152.76,2.618]
[1642068892118,25.52337813,152.82,152.76,2.878]
[1642068893015,25.52337813,152.82,152.76,2.618]
[1642068893215,12.117,152.81,152.7,24.0422]
[1642068893618,12.367,152.81,152.68,2.618]
[1642068893817,28.81285772,152.79,152.68,2.618]
[1642068894019,12.118,152.78,152.68,2.618]
[1642068894421,12.368,152.78,152.68,2.618]
[1642068894619,22.1881,152.78,152.68,12.439]
[1642068895025,22.1881,152.78,152.68,12.699]
[1642068895223,22.1881,152.78,152.69,24.0846]
[1642068895423,22.1881,152.78,152.7,65.88]
[1642068896024,22.1881,152.78,152.69,26.7036]
[1642068896222,22.1881,152.78,152.69,24.0846]
[1642068896631,22.1881,152.78,152.69,9.8203]
[1642068897652,22.1881,152.78,152.66,32.732]
[1642068897854,22.1881,152.78,152.67,23.6365]
[1642068901254,22.1881,152.78,152.67,89.5165]
[1642068901455,22.1881,152.78,152.67,23.6365]
[1642068902256,22.1881,152.78,152.67,89.7765]
[1642068902656,22.1881,152.78,152.67,90.0265]
[1642068902860,22.1881,152.78,152.68,2.619]
[1642068903058,19.3201,152.78,152.68,2.619]
[1642068903257,19.3201,152.78,152.65,2.619]
[1642068903258,2.619,152.77,152.65,2.619]
[1642068903458,36.57514656,152.76,152.65,2.619]
[1642068903659,2.619,152.75,152.65,2.619]
[1642068903857,9.5,152.74,152.65,2.619]
[1642068904457,25.77082807,152.73,152.66,24.5141]
[1642068904661,9.5,152.72,152.66,24.5141]
[1642068905057,9.75,152.72,152.66,24.5141]
[1642068907959,9.75,152.72,152.65,2.619]
[1642068908362,41.76111019,152.72,152.65,2.619]
[1642068909865,51.58461019,152.72,152.62,2.619]
[1642068910261,51.58461019,152.72,152.62,68.749]
[1642068910462,51.58461019,152.72,152.62,2.619]
[1642068910665,51.58461019,152.72,152.63,23.1316]
[1642068911862,51.58461019,152.72,152.63,25.7506]
[1642068912464,51.58461019,152.72,152.63,2.619]
[1642068912863,2.619,152.71,152.6,2.619]
[1642068913066,24.20814031,152.69,152.6,2.619]
[1642068913263,9.5,152.68,152.6,2.619]
[1642068913463,2.62,152.67,152.58,46.5085]
[1642068913663,9.5,152.66,152.58,46.5085]
[1642068913866,37.6177689,152.66,152.58,46.5085]
[1642068914067,37.8677689,152.66,152.58,46.5085]
[1642068914265,37.8677689,152.66,152.55,146.8572]
[1642068914465,2.621,152.65,152.56,24.3603]
[1642068914867,9.8288,152.64,152.56,24.3603]
[1642068915171,10.0788,152.64,152.56,24.3603]
[1642068915566,0.25,152.64,152.56,24.3603]
[1642068916168,9.75,152.64,152.56,24.3603]
[1642068916667,9.8295,152.63,152.55,2.62]
[1642068916868,9.8295,152.63,152.53,26.9735]
[1642068917067,27.02210268,152.62,152.53,27.2235]
[1642068917268,36.52210268,152.62,152.53,27.2235]
[1642068917469,36.77210268,152.62,152.53,27.2235]
[1642068918267,36.77210268,152.62,152.53,26.9735]
[1642068918666,9.8309,152.61,152.53,26.9735]
[1642068919067,10.0809,152.61,152.53,26.9735]
[1642068919768,10.0809,152.61,152.53,2.621]
[1642068919969,12.121,152.6,152.52,9.8313]
[1642068920371,31.46177481,152.59,152.52,9.8313]
[1642068920569,12.122,152.58,152.49,2.621]
[1642068920770,12.122,152.58,152.47,2.622]
[1642068920968,12.372,152.58,152.47,2.622]
[1642068921869,31.79177925,152.56,152.47,2.622]
[1642068922069,9.5,152.55,152.47,2.622]
[1642068922470,9.75,152.55,152.47,2.872]
[1642068923771,19.585,152.55,152.47,12.7069]
[1642068924674,9.75,152.55,152.47,12.7069]
[1642068924873,9.75,152.55,152.47,12.9669]
[1642068925073,9.75,152.55,152.47,78.8469]
[1642068925275,9.75,152.55,152.47,12.9669]
[1642068925875,9.75,152.55,152.47,12.7069]
[1642068929076,9.8342,152.56,152.48,65.88]
[1642068929475,9.8342,152.56,152.48,72.39]
[1642068929676,9.5,152.59,152.48,72.39]
[1642068929878,9.5,152.59,152.49,89.6967]
[1642068930077,9.5,152.59,152.49,96.2067]
[1642068930482,9.5,152.59,152.49,30.3267]
[1642068930680,39.62026203,152.59,152.49,24.0667]
[1642068930881,49.45226203,152.59,152.49,24.0667]
[1642068931083,49.45226203,152.59,152.51,9.8324]
[1642068931282,19.332,152.59,152.51,9.8324]
[1642068931508,19.332,152.59,152.51,10.0824]
[1642068931907,19.582,152.59,152.51,10.0824]
[1642068933113,19.582,152.59,152.51,10.3424]
[1642068933511,19.582,152.59,152.51,10.0824]
[1642068937917,31.72050923,152.58,152.51,10.0824]
[1642068938115,31.97050923,152.58,152.51,10.0824]
[1642068939116,31.97050923,152.58,152.51,9.8324]
[1642068940016,41.80330923,152.58,152.51,9.8324]
[1642068940218,44.42530923,152.58,152.51,9.8324]
[1642068940920,44.42530923,152.58,152.5,2.622]
[1642068941118,9.5,152.59,152.5,2.872]
[1642068941321,24.615,152.62,152.51,66.92153219]
[1642068941517,24.615,152.62,152.52,2.621]
[1642068941917,24.615,152.62,152.52,8.871]
[1642068942118,25.55784008,152.61,152.53,23.2056]
[1642068942321,25.55784008,152.61,152.54,2.621]
[1642068942519,25.55784008,152.61,152.54,2.871]
[1642068942720,24.615,152.62,152.54,2.871]
[1642068942918,24.615,152.62,152.55,66.92153219]
[1642068943122,24.615,152.62,152.56,2.621]
[1642068943318,24.615,152.62,152.57,65.88]
[1642068943521,24.615,152.62,152.58,2.621]
[1642068943921,24.615,152.62,152.58,8.871]
[1642068944517,24.615,152.62,152.58,2.871]
[1642068946127,24.615,152.62,152.6,9.8265]
[1642068946322,24.615,152.62,152.61,6.06439993]
[1642068947123,24.615,152.62,152.61,3.03219996]
[1642068949228,24.615,152.62,152.61,12.85889997]
[1642068949424,24.615,152.62,152.61,15.89109993]
[1642068949824,9.8269,152.67,152.61,15.89109993]
[1642068950025,2.62,152.66,152.61,6.06439993]
[1642068950228,12.448,152.66,152.61,6.06439993]
[1642068950526,12.698,152.66,152.59,9.828]
[1642068951426,10.078,152.66,152.59,9.828]
[1642068952531,10.078,152.66,152.58,91.7821]
[1642068952727,2.62,152.65,152.58,89.1621]
[1642068953030,9.5,152.64,152.58,89.1621]
[1642068953428,2.87,152.65,152.58,89.4121]
[1642068953627,9.5,152.64,152.58,89.4121]
[1642068953832,9.5,152.64,152.58,89.1621]
[1642068954027,9.5,152.64,152.59,2.621]
[1642068954229,9.5,152.64,152.6,9.8269]
[1642068954628,9.8269,152.67,152.6,9.8269]
[1642068954828,12.12,152.68,152.6,9.8269]
[1642068955228,12.37,152.68,152.6,9.8269]
[1642068955928,2.62,152.68,152.6,10.0869]
[1642068956128,98.651,152.7,152.6,10.0869]
[1642068956331,9.5,152.7,152.61,24.3796]
[1642068956529,9.5,152.7,152.62,2.62]
[1642068956830,9.5,152.7,152.64,9.8244]
[1642068957230,9.75,152.7,152.64,9.8244]
[1642068959232,19.5751,152.7,152.63,9.8251]
[1642068961031,9.5,152.7,152.63,9.8251]
[1642068961233,9.5,152.7,152.63,10.0851]
[1642068961437,9.5,152.7,152.63,75.9651]
[1642068962634,9.5,152.7,152.63,75.7051]
[1642068962933,9.75,152.7,152.63,75.7051]
[1642068963532,9.75,152.7,152.63,9.8251]
[1642068964135,19.5751,152.7,152.63,9.8251]
[1642068966337,9.75,152.7,152.63,9.8251]
[1642068966537,2.62,152.71,152.64,65.88]
[1642068966740,33.4642202,152.72,152.64,65.88]
[1642068966741,13.98915527,152.74,152.66,9.8228]
[1642068967238,13.98915527,152.74,152.64,2.62]
[1642068967440,21.9431,152.74,152.62,2.619]
[1642068967639,21.9431,152.74,152.63,22.5128]
[1642068967839,29.19339259,152.73,152.65,9.8241]
[1642068968341,0.25,152.73,152.65,9.8241]
[1642068968544,2.62,152.74,152.65,9.8241]
[1642068968545,2.87,152.74,152.65,10.0741]
[1642068968743,0.25,152.74,152.66,25.4763]
[1642068968940,0.25,152.74,152.66,35.2993]
[1642068969141,2.869,152.75,152.66,35.2993]
[1642068969345,28.68339224,152.74,152.66,32.6803]
[1642068969544,38.75609224,152.74,152.66,32.6803]
[1642068970542,38.75609224,152.74,152.66,32.9303]